fUST/lending_fUST_20240824
["ID","MTS","AMOUNT","RATE_DAILY","PERIOD"]
[335733097,1724467850731,-1955.39,0.00013698,2]
[335733099,1724467850743,-1050.21,0.00013698,2]
[335733100,1724467850756,-856.98,0.00013698,2]
[335733102,1724467850766,-1921.02,0.00013698,2]
[335733104,1724467850776,-11027.6,0.00013698,2]
[335733106,1724467850785,-5798.0,0.00013698,2]
[335733108,1724467850801,-2196.42,0.00013698,2]
[335733109,1724467850811,-627.83,0.00013698,2]
[335733111,1724467850821,-305.24911577,0.00013698,2]
[335733113,1724467850830,-500.0,0.00013698,2]
[335733114,1724467850840,-500.0,0.00013698,2]
[335733116,1724467850849,-500.0,0.00013698,2]
[335733117,1724467850858,-946.66,0.00013698,2]
[335733118,1724467850868,-679.55,0.00013698,2]
[335733119,1724467850878,-515.1272377,0.00013698,2]
[335733120,1724467850887,-504.03413542,0.00013698,2]
[335733121,1724467850896,-718.98,0.00013698,2]
[335733122,1724467850906,-720.32,0.00013698,2]
[335733123,1724467850915,-201.45629443,0.00013698,2]
[335733124,1724467850924,-500.0,0.00013698,2]
[335733125,1724467850934,-500.0,0.00013698,2]
[335733126,1724467850943,-500.0,0.00013698,2]
[335733127,1724467850953,-1716.46,0.00013698,2]
[335733128,1724467850963,-500.0,0.00013698,2]
[335733130,1724467850973,-500.0,0.00013698,2]
[335733131,1724467850982,-464.28113837,0.00013698,2]
[335733132,1724467850993,-500.0,0.00013698,2]
[335733133,1724467851002,-500.0,0.00013698,2]
[335733134,1724467851012,-500.0,0.00013698,2]
[335733135,1724467851022,-500.0,0.00013698,2]
[335733136,1724467851031,-500.0,0.00013698,2]
[335733137,1724467851040,-500.0,0.00013698,2]
[335733138,1724467851049,-500.0,0.00013698,2]
[335733139,1724467851059,-1147.48,0.00013698,2]
[335733140,1724467851068,-500.0,0.00013698,2]
[335733141,1724467851077,-500.0,0.00013698,2]
[335733142,1724467851086,-500.0,0.00013698,2]
[335733143,1724467851096,-500.0,0.00013698,2]
[335733144,1724467851105,-3421.37,0.00013698,2]
[335733145,1724467851115,-500.0,0.00013698,2]
[335733146,1724467851124,-500.0,0.00013698,2]
[335733147,1724467851133,-500.0,0.00013698,2]
[335733148,1724467851143,-500.0,0.00013698,2]
[335733149,1724467851152,-2340.45,0.00013698,2]
[335733150,1724467851162,-19637.69,0.00013698,2]
[335733151,1724467851171,-500.0,0.00013698,2]
[335733152,1724467851180,-500.0,0.00013698,2]
[335733153,1724467851190,-500.0,0.00013698,2]
[335733154,1724467851199,-500.0,0.00013698,2]
[335733155,1724467851208,-259.66926664,0.00013698,2]
[335733156,1724467851218,-2945.52,0.00013698,2]
[335733157,1724467851227,-500.0,0.00013698,2]
[335733158,1724467851236,-654.79,0.00013698,2]
[335733159,1724467851246,-500.0,0.00013698,2]
[335733160,1724467851256,-2263.7,0.00013698,2]
[335733161,1724467851266,-500.0,0.00013698,2]
[335733162,1724467851275,-5063.61,0.00013698,2]
[335733163,1724467851284,-500.0,0.00013698,2]
[335733164,1724467851294,-500.0,0.00013698,2]
[335733165,1724467851303,-1345.35,0.00013698,2]
[335733166,1724467851312,-500.0,0.00013698,2]
[335733167,1724467851321,-2833.51,0.00013698,2]
[335733168,1724467851331,-622.11,0.00013698,2]
[335733169,1724467851340,-13914.56,0.00013698,2]
[335733170,1724467851350,-500.0,0.00013698,2]
[335733171,1724467851359,-981.08,0.00013698,2]
[335733172,1724467851368,-500.0,0.00013698,2]
[335733173,1724467851378,-2417.02,0.00013698,2]
[335733174,1724467851387,-500.0,0.00013698,2]
[335733175,1724467851396,-500.0,0.00013698,2]
[335733176,1724467851406,-500.0,0.00013698,2]
[335733177,1724467851415,-1117.25,0.00013698,2]
[335733178,1724467851424,-1026.46,0.00013698,2]
[335733179,1724467851434,-500.0,0.00013698,2]
[335733180,1724467851443,-1977.39,0.00013698,2]
[335733181,1724467851452,-500.0,0.00013698,2]
[335733182,1724467851461,-500.0,0.00013698,2]
[335733183,1724467851471,-500.0,0.00013698,2]
[335733184,1724467851480,-500.0,0.00013698,2]
[335733185,1724467851490,-500.0,0.00013698,2]
[335733186,1724467851499,-500.0,0.00013698,2]
[335733187,1724467851509,-433.045272,0.00013699,2]
[335733188,1724467851518,-433.045272,0.00013699,2]
[335733189,1724467851527,-151.0,0.00013699,2]
[335733190,1724467851537,-151.0,0.00013699,2]
[335733191,1724467851546,-151.386232,0.00013699,2]
[335733192,1724467851555,-220.157913,0.00013699,2]
[335733193,1724467851564,-220.157913,0.00013699,2]
[335733194,1724467851574,-2134.705053,0.00013699,2]
[335733195,1724467851583,-2134.705053,0.00013699,2]
[335733196,1724467851593,-151.0,0.00013699,2]
[335733197,1724467851602,-151.0,0.00013699,2]
[335733198,1724467851611,-153.505588,0.00013699,2]
[335733199,1724467851621,-151.0,0.00013699,2]
[335733200,1724467851630,-197.123887,0.00013699,2]
[335733201,1724467851639,-197.123887,0.00013699,2]
[335733202,1724467851648,-261.313277,0.00013699,2]
[335733203,1724467851657,-151.0,0.00013699,2]
[335733204,1724467851666,-261.313277,0.00013699,2]
[335733205,1724467851675,-151.0,0.00013699,2]
[335733206,1724467851685,-151.0,0.00013699,2]
[335733207,1724467851694,-383.136542,0.00013699,2]
[335733208,1724467851703,-383.136542,0.00013699,2]
[335733209,1724467851712,-3000.0,0.00013699,2]
[335733210,1724467851722,-151.0,0.00013699,2]
[335733211,1724467851732,-404.775623,0.00013699,2]
[335733212,1724467851742,-4588.09141,0.00013699,2]
[335733213,1724467851751,-4588.09141,0.00013699,2]
[335733214,1724467851760,-404.775623,0.00013699,2]
[335733215,1724467851770,-151.0,0.00013699,2]
[335733216,1724467851779,-151.0,0.00013699,2]
[335733217,1724467851790,-151.0,0.00013699,2]
[335733218,1724467851801,-151.0,0.00013699,2]
[335733219,1724467851810,-151.0,0.00013699,2]
[335733220,1724467851819,-448.489067,0.00013699,2]
[335733221,1724467851829,-285.982218,0.00013699,2]
[335733222,1724467851838,-296.87412,0.00013699,2]
[335733223,1724467851848,-296.87412,0.00013699,2]
[335733224,1724467851857,-296.87412,0.00013699,2]
[335733225,1724467851867,-296.87412,0.00013699,2]
[335733226,1724467851877,-225.714086,0.00013699,2]
[335733227,1724467851887,-225.714086,0.00013699,2]
[335733228,1724467851896,-225.714086,0.00013699,2]
[335733229,1724467851906,-225.714086,0.00013699,2]
[335733230,1724467851915,-458.491436,0.00013699,2]
[335733231,1724467851925,-458.491436,0.00013699,2]
[335733232,1724467851935,-151.0,0.00013699,2]
[335733233,1724467851944,-151.0,0.00013699,2]
[335733234,1724467851954,-2504.499866,0.00013699,2]
[335733235,1724467851963,-458.491436,0.00013699,2]
[335733236,1724467851972,-458.491436,0.00013699,2]
[335733237,1724467851982,-1842.965096,0.00013699,2]
[335733238,1724467851991,-1842.965096,0.00013699,2]
[335733239,1724467852000,-151.0,0.00013699,2]
[335733240,1724467852009,-151.0,0.00013699,2]
[335733241,1724467852018,-1842.965096,0.00013699,2]
[335733242,1724467852028,-1842.965096,0.00013699,2]
[335733243,1724467852038,-151.0,0.00013699,2]
[335733244,1724467852047,-151.0,0.00013699,2]
[335733245,1724467852056,-1375.70694,0.00013699,2]
[335733246,1724467852066,-1375.70694,0.00013699,2]
[335733247,1724467852075,-1375.70694,0.00013699,2]
[335733248,1724467852087,-1375.70694,0.00013699,2]
[335733249,1724467852098,-950.259632,0.00013699,2]
[335733250,1724467852108,-950.259632,0.00013699,2]
[335733251,1724467852119,-1062.223595,0.00013699,2]
[335733252,1724467852129,-1062.223595,0.00013699,2]
[335733253,1724467852139,-950.259632,0.00013699,2]
[335733254,1724467852148,-950.259632,0.00013699,2]
[335733255,1724467852158,-151.0,0.00013699,2]
[335733256,1724467852166,-1062.223595,0.00013699,2]
[335733257,1724467852177,-151.0,0.00013699,2]
[335733258,1724467852186,-1062.223595,0.00013699,2]
[335733259,1724467852196,-151.0,0.00013699,2]
[335733260,1724467852206,-216.493282,0.00013699,2]
[335733261,1724467852217,-181.031769,0.00013699,2]
[335733262,1724467852226,-181.031769,0.00013699,2]
[335733263,1724467852235,-181.031769,0.00013699,2]
[335733264,1724467852246,-181.031769,0.00013699,2]
[335733265,1724467852255,-203.559079,0.00013699,2]
[335733266,1724467852265,-203.559079,0.00013699,2]
[335733267,1724467852274,-203.559079,0.00013699,2]
[335733268,1724467852284,-203.559079,0.00013699,2]
[335733269,1724467852293,-770.534569,0.00013699,2]
[335733270,1724467852302,-770.534569,0.00013699,2]
[335733271,1724467852313,-770.534569,0.00013699,2]
[335733272,1724467852322,-770.534569,0.00013699,2]
[335733273,1724467852331,-527.90544,0.00013699,2]
[335733274,1724467852340,-527.90544,0.00013699,2]
[335733275,1724467852350,-527.90544,0.00013699,2]
[335733276,1724467852359,-527.90544,0.00013699,2]
[335733277,1724467852369,-3113.003741,0.00013699,2]
[335733278,1724467852378,-3113.003741,0.00013699,2]
[335733279,1724467852387,-3113.003741,0.00013699,2]
[335733280,1724467852397,-3113.003741,0.00013699,2]
[335733281,1724467852406,-1040.786388,0.00013699,2]
[335733282,1724467852415,-1040.786388,0.00013699,2]
[335733283,1724467852424,-1040.786388,0.00013699,2]
[335733284,1724467852434,-1040.786388,0.00013699,2]
[335733285,1724467852443,-3473.52011,0.00013699,2]
[335733286,1724467852452,-3473.52011,0.00013699,2]
[335733287,1724467852462,-3473.52011,0.00013699,2]
[335733288,1724467852471,-3473.52011,0.00013699,2]
[335733289,1724467852481,-650.059302,0.00013699,2]
[335733290,1724467852491,-650.059302,0.00013699,2]
[335733291,1724467852501,-151.0,0.00013699,2]
[335733292,1724467852510,-151.0,0.00013699,2]
[335733293,1724467852519,-650.059302,0.00013699,2]
[335733294,1724467852528,-650.059302,0.00013699,2]
[335733295,1724467852537,-214.938096,0.00013699,2]
[335733296,1724467852679,-214.938096,0.00013699,2]
[335733297,1724467852705,-214.938096,0.00013699,2]
[335733298,1724467852715,-214.938096,0.00013699,2]
[335733299,1724467852724,-151.0,0.00013699,2]
[335733300,1724467852734,-151.0,0.00013699,2]
[335733301,1724467852743,-750.40252122,0.00013699,2]
[335733302,1724467852753,-750.40252122,0.00013699,2]
[335733303,1724467852762,-750.40252122,0.00013699,2]
[335733304,1724467852771,-750.40252122,0.00013699,2]
[335733305,1724467852779,-750.40252122,0.00013699,2]
[335733306,1724467852788,-750.40252122,0.00013699,2]
[335733307,1724467852799,-750.40252122,0.00013699,2]
[335733308,1724467852808,-750.40252122,0.00013699,2]
[335733309,1724467852817,-750.40252122,0.00013699,2]
[335733310,1724467852826,-750.40252122,0.00013699,2]
[335733311,1724467852835,-750.40252122,0.00013699,2]
[335733312,1724467852844,-750.40252122,0.00013699,2]
[335733313,1724467852854,-750.40252122,0.00013699,2]
[335733314,1724467852863,-750.40252122,0.00013699,2]
[335733315,1724467852874,-750.40252122,0.00013699,2]
[335733316,1724467852883,-750.40252122,0.00013699,2]
[335733317,1724467852892,-750.40252122,0.00013699,2]
[335733318,1724467852901,-750.40252122,0.00013699,2]
[335733319,1724467852910,-750.40252122,0.00013699,2]
[335733320,1724467852919,-750.40252122,0.00013699,2]
[335733321,1724467852928,-750.40252122,0.00013699,2]
[335733322,1724467852937,-750.40252122,0.00013699,2]
[335733323,1724467852946,-750.40252122,0.00013699,2]
[335733324,1724467852955,-194.91980144,0.00013699,2]
[335733325,1724467852966,-1275.719266,0.00013699,2]
[335733326,1724467852975,-1275.719266,0.00013699,2]
[335733327,1724467852985,-489.20911,0.00013699,2]
[335733328,1724467852994,-489.20911,0.00013699,2]
[335733329,1724467853003,-404.775623,0.00013699,2]
[335733330,1724467853012,-404.775623,0.00013699,2]
[335733331,1724467853021,-3113.003741,0.00013699,2]
[335733332,1724467853031,-3113.003741,0.00013699,2]
[335733333,1724467853040,-1040.786388,0.00013699,2]
[335733334,1724467853050,-1040.786388,0.00013699,2]
[335733335,1724467853059,-3473.52011,0.00013699,2]
[335733336,1724467853068,-3473.52011,0.00013699,2]
[335733337,1724467853078,-650.059302,0.00013699,2]
[335733338,1724467853089,-151.0,0.00013699,2]
[335733339,1724467853099,-650.059302,0.00013699,2]
[335733340,1724467853108,-214.938096,0.00013699,2]
[335733341,1724467853118,-214.938096,0.00013699,2]
[335733342,1724467853127,-151.0,0.00013699,2]
[335733343,1724467853137,-150.112233,0.000137,2]
[335733344,1724467853147,-150.112233,0.000137,2]
[335733345,1724467853156,-150.112233,0.000137,2]
[335733346,1724467853166,-150.112233,0.000137,2]
[335733347,1724467853175,-150.112233,0.000137,2]
[335733348,1724467853185,-150.112233,0.000137,2]
[335733349,1724467853195,-150.112233,0.000137,2]
[335733350,1724467853205,-150.112233,0.000137,2]
[335733351,1724467853215,-150.112233,0.000137,2]
[335733352,1724467853224,-150.112233,0.000137,2]
[335733353,1724467853234,-150.112233,0.000137,2]
[335733354,1724467853245,-150.112233,0.000137,2]
[335733355,1724467853255,-151.0,0.00013772,2]
[335733356,1724467853265,-151.0,0.00013772,2]
[335733357,1724467853274,-151.0,0.00013772,2]
[335733358,1724467853284,-151.0,0.00013772,2]
[335733359,1724467853295,-11894.16804779,0.00013772,2]
[335733360,1724467853306,-150.112233,0.000138,2]
[335733361,1724467853315,-150.112233,0.000138,2]
[335733362,1724467853325,-153.0,0.000138,2]
[335733363,1724467853337,-153.0,0.000138,2]
[335733364,1724467853348,-150.112233,0.000139,2]
[335733365,1724467853359,-150.112233,0.000139,2]
[335733366,1724467853369,-5720.57521366,0.00013944,2]
[335733367,1724467853379,-155.0,0.0001396,2]
[335733368,1724467853389,-218.26148285,0.00013971,2]
[335733369,1724467853398,-7135.83396812,0.00013971,2]
[335733370,1724467853408,-52.30759006,0.00013972,2]
[335733371,1724467853417,-503.18446818,0.00013972,2]
[335733372,1724467853430,-298.95432508,0.00013972,2]
[335733373,1724467853441,-500.0,0.00013972,2]
[335733374,1724467853453,-500.37530072,0.00013972,2]
[335733375,1724467853464,-500.0,0.00013972,2]
[335733376,1724467853474,-151.0,0.00013972,2]
[335733377,1724467853483,-151.0,0.00013972,2]
[335733378,1724467853493,-151.0,0.00013972,2]
[335733379,1724467853503,-151.0,0.00013972,2]
[335733380,1724467853512,-151.0,0.00013972,2]
[335733381,1724467853522,-151.0,0.00013972,2]
[335733382,1724467853533,-151.0,0.00013972,2]
[335733383,1724467853544,-151.0,0.00013972,2]
[335733384,1724467853555,-433.045272,0.00013972,2]
[335733385,1724467853567,-433.045272,0.00013972,2]
[335733386,1724467853576,-433.045272,0.00013972,2]
[335733387,1724467853585,-433.045272,0.00013972,2]
[335733388,1724467853595,-433.045272,0.00013972,2]
[335733389,1724467853604,-433.045272,0.00013972,2]
[335733390,1724467853613,-433.045272,0.00013972,2]
[335733391,1724467853622,-433.045272,0.00013972,2]
[335733392,1724467853631,-151.0,0.00013972,2]
[335733393,1724467853641,-500.0,0.00013972,2]
[335733394,1724467853650,-500.0,0.00013972,2]
[335733395,1724467853659,-500.0,0.00013972,2]
[335733396,1724467853668,-500.0,0.00013972,2]
[335733397,1724467853678,-151.0,0.00013972,2]
[335733398,1724467853688,-500.0,0.00013972,2]
[335733399,1724467853698,-500.0,0.00013972,2]
[335733400,1724467853708,-500.0,0.00013972,2]
[335733401,1724467853721,-151.0,0.00013972,2]
[335733402,1724467853731,-151.0,0.00013972,2]
[335733403,1724467853742,-500.0,0.00013972,2]
[335733404,1724467853751,-590.86,0.00013972,2]
[335733405,1724467853762,-500.0,0.00013972,2]
[335733406,1724467853771,-1001.33,0.00013972,2]
[335733407,1724467853780,-500.0,0.00013972,2]
[335733408,1724467853789,-613.4,0.00013972,2]
[335733409,1724467853800,-151.338408,0.00013972,2]
[335733410,1724467853809,-500.0,0.00013972,2]
[335733411,1724467853818,-500.0,0.00013972,2]
[335733412,1724467853827,-637.04,0.00013972,2]
[335733413,1724467853837,-500.0,0.00013972,2]
[335733414,1724467853849,-500.0,0.00013972,2]
[335733415,1724467853861,-500.0,0.00013972,2]
[335733416,1724467853871,-151.0,0.00013972,2]
[335733417,1724467853881,-151.0,0.00013972,2]
[335733418,1724467853890,-500.0,0.00013972,2]
[335733419,1724467853900,-272.240795,0.00013972,2]
[335733420,1724467853910,-926.55,0.00013972,2]
[335733421,1724467853920,-500.0,0.00013972,2]
[335733422,1724467853930,-500.0,0.00013972,2]
[335733423,1724467853939,-500.0,0.00013972,2]
[335733424,1724467853949,-500.0,0.00013972,2]
[335733425,1724467853958,-500.0,0.00013972,2]
[335733426,1724467853968,-560.0,0.00013972,2]
[335733427,1724467853977,-500.3351258,0.00013972,2]
[335733428,1724467853987,-543.42,0.00013972,2]
[335733429,1724467853997,-500.0,0.00013972,2]
[335733430,1724467854006,-500.36419857,0.00013972,2]
[335733431,1724467854015,-557.22,0.00013972,2]
[335733432,1724467854024,-500.0,0.00013972,2]
[335733433,1724467854034,-851.67,0.00013972,2]
[335733434,1724467854043,-500.0,0.00013972,2]
[335733435,1724467854052,-500.0,0.00013972,2]
[335733436,1724467854061,-834.42,0.00013972,2]
[335733437,1724467854071,-500.0,0.00013972,2]
[335733438,1724467854080,-1003.75,0.00013972,2]
[335733439,1724467854090,-500.0,0.00013972,2]
[335733440,1724467854100,-500.0,0.00013972,2]
[335733441,1724467854109,-601.78,0.00013972,2]
[335733442,1724467854118,-500.0,0.00013972,2]
[335733443,1724467854129,-500.0,0.00013972,2]
[335733444,1724467854140,-500.0,0.00013972,2]
[335733445,1724467854151,-500.0,0.00013972,2]
[335733446,1724467854161,-500.0,0.00013972,2]
[335733447,1724467854171,-500.0,0.00013972,2]
[335733448,1724467854181,-748.81,0.00013972,2]
[335733449,1724467854190,-500.0,0.00013972,2]
[335733450,1724467854200,-500.0,0.00013972,2]
[335733451,1724467854209,-584.27,0.00013972,2]
[335733452,1724467854219,-500.0,0.00013972,2]
[335733453,1724467854228,-500.0,0.00013972,2]
[335733454,1724467854237,-957.88,0.00013972,2]
[335733455,1724467854255,-500.0,0.00013972,2]
[335733456,1724467854264,-204.026499,0.00013972,2]
[335733457,1724467854273,-204.026499,0.00013972,2]
[335733458,1724467854283,-910.9,0.00013972,2]
[335733459,1724467854292,-198.403384,0.00013972,2]
[335733460,1724467854301,-204.026499,0.00013972,2]
[335733461,1724467854311,-198.403384,0.00013972,2]
[335733462,1724467854320,-500.0,0.00013972,2]
[335733463,1724467854330,-198.403384,0.00013972,2]
[335733464,1724467854339,-500.0,0.00013972,2]
[335733465,1724467854348,-204.026499,0.00013972,2]
[335733466,1724467854357,-204.026499,0.00013972,2]
[335733467,1724467854366,-204.026499,0.00013972,2]
[335733468,1724467854375,-198.403384,0.00013972,2]
[335733469,1724467854385,-198.403384,0.00013972,2]
[335733470,1724467854394,-198.403384,0.00013972,2]
[335733471,1724467854404,-500.0,0.00013972,2]
[335733472,1724467854413,-500.0,0.00013972,2]
[335733473,1724467854423,-151.0,0.00013972,2]
[335733474,1724467854433,-151.0,0.00013972,2]
[335733475,1724467854442,-151.0,0.00013972,2]
[335733476,1724467854451,-500.0,0.00013972,2]
[335733477,1724467854461,-177.61,0.00013972,2]
[335733478,1724467854470,-151.187678,0.00013972,2]
[335733479,1724467854479,-500.0,0.00013972,2]
[335733480,1724467854488,-760.06,0.00013972,2]
[335733481,1724467854497,-500.0,0.00013972,2]
[335733482,1724467854506,-500.0,0.00013972,2]
[335733483,1724467854515,-559.01710483,0.00013972,2]
[335733484,1724467854525,-500.0,0.00013972,2]
[335733485,1724467854535,-500.0,0.00013972,2]
[335733486,1724467854544,-500.0,0.00013972,2]
[335733487,1724467854553,-500.0,0.00013972,2]
[335733488,1724467854562,-500.0,0.00013972,2]
[335733489,1724467854571,-2073.62,0.00013972,2]
[335733490,1724467854580,-151.0,0.00013972,2]
[335733491,1724467854590,-151.0,0.00013972,2]
[335733492,1724467854600,-151.0,0.00013972,2]
[335733493,1724467854609,-500.0,0.00013972,2]
[335733494,1724467854619,-500.0,0.00013972,2]
[335733495,1724467854630,-767.27,0.00013972,2]
[335733496,1724467854641,-500.0,0.00013972,2]
[335733497,1724467854652,-560.92,0.00013972,2]
[335733498,1724467854663,-500.0,0.00013972,2]
[335733499,1724467854672,-417.61929196,0.00013972,2]
[335733500,1724467854682,-1254.81,0.00013972,2]
[335733501,1724467854691,-1359.87,0.00013972,2]
[335733502,1724467854700,-500.0,0.00013972,2]
[335733503,1724467854710,-500.0,0.00013972,2]
[335733504,1724467854719,-520.54,0.00013972,2]
[335733505,1724467854729,-500.0,0.00013972,2]
[335733506,1724467854738,-692.15,0.00013972,2]
[335733507,1724467854752,-151.0,0.00013972,2]
[335733508,1724467854761,-151.0,0.00013972,2]
[335733509,1724467854771,-151.0,0.00013972,2]
[335733510,1724467854780,-151.520146,0.00013972,2]
[335733511,1724467854790,-500.0,0.00013972,2]
[335733512,1724467854802,-500.0,0.00013972,2]
[335733513,1724467854811,-1587.66,0.00013972,2]
[335733514,1724467854821,-500.0,0.00013972,2]
[335733515,1724467854830,-151.195354,0.00013972,2]
[335733516,1724467854840,-500.0,0.00013972,2]
[335733517,1724467854850,-1249.16,0.00013972,2]
[335733518,1724467854859,-639.21,0.00013972,2]
[335733519,1724467854869,-502.16907928,0.00013972,2]
[335733520,1724467854878,-500.0,0.00013972,2]
[335733521,1724467854888,-500.0,0.00013972,2]
[335733522,1724467854898,-2367.48,0.00013972,2]
[335733523,1724467854907,-1618.54,0.00013972,2]
[335733524,1724467854916,-1469.87,0.00013972,2]
[335733525,1724467854925,-847.88,0.00013972,2]
[335733526,1724467854935,-500.0,0.00013972,2]
[335733527,1724467854944,-1238.19,0.00013972,2]
[335733528,1724467854953,-323.88910132,0.00013972,2]
[335733529,1724467854965,-500.0,0.00013972,2]
[335733530,1724467854976,-500.0,0.00013972,2]
[335733531,1724467854986,-670.93,0.00013972,2]
[335733532,1724467854995,-1240.44,0.00013972,2]
[335733533,1724467855004,-500.0,0.00013972,2]
[335733534,1724467855014,-1566.59,0.00013972,2]
[335733535,1724467855024,-500.0,0.00013972,2]
[335733536,1724467855034,-500.0,0.00013972,2]
[335733537,1724467855043,-1362.48,0.00013972,2]
[335733538,1724467855053,-701.58,0.00013972,2]
[335733539,1724467855063,-500.0,0.00013972,2]
[335733540,1724467855072,-542.74513488,0.00013972,2]
[335733541,1724467855081,-500.0,0.00013972,2]
[335733542,1724467855091,-500.0,0.00013972,2]
[335733543,1724467855100,-616.7,0.00013972,2]
[335733544,1724467855110,-500.0,0.00013972,2]
[335733545,1724467855120,-502.95744415,0.00013972,2]
[335733546,1724467855130,-546.66878442,0.00013972,2]
[335733547,1724467855141,-500.0,0.00013972,2]
[335733548,1724467855153,-500.0,0.00013972,2]
[335733549,1724467855163,-500.0,0.00013972,2]
[335733550,1724467855173,-900.52,0.00013972,2]
[335733551,1724467855182,-500.0,0.00013972,2]
[335733552,1724467855192,-779.54,0.00013972,2]
[335733553,1724467855201,-605.2,0.00013972,2]
[335733554,1724467855210,-500.0,0.00013972,2]
[335733555,1724467855220,-500.0,0.00013972,2]
[335733556,1724467855229,-500.0,0.00013972,2]
[335733557,1724467855239,-500.0,0.00013972,2]
[335733558,1724467855249,-500.0,0.00013972,2]
[335733559,1724467855260,-1705.15,0.00013972,2]
[335733560,1724467855270,-500.0,0.00013972,2]
[335733561,1724467855280,-500.0,0.00013972,2]
[335733562,1724467855289,-500.0,0.00013972,2]
[335733563,1724467855299,-1275.719266,0.00013972,2]
[335733564,1724467855309,-1275.719266,0.00013972,2]
[335733565,1724467855318,-1275.719266,0.00013972,2]
[335733566,1724467855329,-2288.05,0.00013972,2]
[335733567,1724467855339,-473.13330551,0.00013972,2]
[335733568,1724467855349,-500.0,0.00013972,2]
[335733569,1724467855360,-1275.719266,0.00013972,2]
[335733570,1724467855370,-1275.719266,0.00013972,2]
[335733571,1724467855379,-1275.719266,0.00013972,2]
[335733572,1724467855389,-500.0,0.00013972,2]
[335733573,1724467855545,-500.0,0.00013972,2]
[335733574,1724467855555,-500.0,0.00013972,2]
[335733575,1724467855565,-500.0,0.00013972,2]
[335733576,1724467855574,-500.0,0.00013972,2]
[335733577,1724467855583,-500.0,0.00013972,2]
[335733578,1724467855593,-500.0,0.00013972,2]
[335733579,1724467855603,-500.0,0.00013972,2]
[335733580,1724467855612,-500.0,0.00013972,2]
[335733581,1724467855621,-2632.62,0.00013972,2]
[335733582,1724467855631,-500.0,0.00013972,2]
[335733583,1724467855640,-500.0,0.00013972,2]
[335733584,1724467855650,-377.1852082,0.00013972,2]
[335733585,1724467855659,-500.0,0.00013972,2]
[335733586,1724467855668,-500.61120877,0.00013972,2]
[335733587,1724467855679,-663.15,0.00013972,2]
[335733588,1724467855689,-220.157913,0.00013972,2]
[335733589,1724467855700,-220.157913,0.00013972,2]
[335733590,1724467855711,-220.157913,0.00013972,2]
[335733591,1724467855723,-220.157913,0.00013972,2]
[335733592,1724467855734,-500.0,0.00013972,2]
[335733593,1724467855746,-220.157913,0.00013972,2]
[335733594,1724467855757,-220.157913,0.00013972,2]
[335733595,1724467855766,-220.157913,0.00013972,2]
[335733596,1724467855777,-220.157913,0.00013972,2]
[335733597,1724467855788,-500.0,0.00013972,2]
[335733598,1724467855802,-500.0,0.00013972,2]
[335733599,1724467855813,-1175.08,0.00013972,2]
[335733600,1724467855824,-500.0,0.00013972,2]
[335733601,1724467855836,-1126.12,0.00013972,2]
[335733602,1724467855846,-1275.9,0.00013972,2]
[335733603,1724467855856,-735.46,0.00013972,2]
[335733604,1724467855867,-232.57120854,0.00013972,2]
[335733605,1724467855877,-772.36,0.00013972,2]